fUST/lending_fUST_20250531
["ID","MTS","AMOUNT","RATE_DAILY","PERIOD"]
[363349653,1748688636651,-500.0,0.00017433,2]
[363349654,1748688636660,-500.0,0.00017433,2]
[363349655,1748688636670,-500.0,0.00017433,2]
[363349656,1748688636680,-500.0,0.00017433,2]
[363349657,1748688636691,-500.0,0.00017433,2]
[363349658,1748688636701,-500.0,0.00017433,2]
[363349659,1748688636711,-170.19556576,0.00017433,2]
[363349660,1748688636721,-500.0,0.00017433,2]
[363349661,1748688636731,-451.70371874,0.00017434,2]
[363349662,1748688636740,-2725.3,0.00017434,2]
[363349663,1748688636750,-2725.3,0.00017434,2]
[363349664,1748688636760,-2725.3,0.00017434,2]
[363349665,1748688636771,-2725.3,0.00017434,2]
[363349666,1748688636782,-2725.3,0.00017434,2]
[363349667,1748688636792,-2725.3,0.00017434,2]
[363349668,1748688636802,-2725.3,0.00017434,2]
[363349669,1748688636811,-3079.448512,0.00017452,2]
[363349670,1748688636822,-430.0,0.00017533,2]
[363349671,1748688636832,-453.33,0.00017533,2]
[363349672,1748688636843,-460.08952511,0.00017533,2]
[363349673,1748688636852,-430.0,0.00017533,2]
[363349674,1748688636863,-430.0,0.00017533,2]
[363349675,1748688636873,-430.0,0.00017533,2]
[363349676,1748688636883,-430.0,0.00017533,2]
[363349677,1748688636893,-475.69,0.00017533,2]
[363349678,1748688636902,-430.0,0.00017533,2]
[363349679,1748688636912,-430.0,0.00017533,2]
[363349680,1748688636922,-430.0,0.00017533,2]
[363349681,1748688636932,-430.0,0.00017533,2]
[363349682,1748688636941,-430.0,0.00017533,2]
[363349683,1748688636951,-430.0,0.00017533,2]
[363349684,1748688636961,-430.0,0.00017533,2]
[363349685,1748688636971,-230.87983874,0.00017533,2]
[363349686,1748688636981,-430.0,0.00017534,2]
[363349687,1748688636991,-781.02,0.00017534,2]
[363349688,1748688637001,-3395.6,0.00017534,2]
[363349689,1748688637011,-430.0,0.00017534,2]
[363349690,1748688637021,-975.01,0.00017534,2]
[363349691,1748688637031,-286.67,0.00017534,2]
[363349692,1748688637042,-430.0,0.00017534,2]
[363349693,1748688637053,-812.68,0.00017534,2]
[363349694,1748688637063,-769.45,0.00017534,2]
[363349695,1748688637072,-430.0,0.00017534,2]
[363349696,1748688637083,-430.0,0.00017534,2]
[363349697,1748688637092,-430.0,0.00017534,2]
[363349698,1748688637102,-430.0,0.00017534,2]
[363349699,1748688637113,-213.84765016,0.00017534,2]
[363349700,1748688637124,-430.0,0.00017534,2]
[363349701,1748688637134,-430.0,0.00017534,2]
[363349702,1748688637144,-430.0,0.00017534,2]
[363349703,1748688637154,-430.0,0.00017534,2]
[363349704,1748688637164,-430.0,0.00017534,2]
[363349705,1748688637173,-441.29,0.00017534,2]
[363349706,1748688637185,-430.0,0.00017534,2]
[363349707,1748688637195,-542.14,0.00017534,2]
[363349708,1748688637206,-873.22,0.00017534,2]
[363349709,1748688637216,-163.45,0.00017534,2]
[363349710,1748688637227,-430.0,0.00017534,2]
[363349711,1748688637236,-562.7,0.00017534,2]
[363349712,1748688637246,-500.0,0.00017565,2]
[363349713,1748688637256,-500.0,0.0001767,2]
[363349714,1748688637268,-500.0,0.0001767,2]
[363349715,1748688637278,-500.0,0.0001767,2]
[363349716,1748688637287,-3079.448512,0.00017728,2]
[363349718,1748688637298,-1000.0,0.00017787,2]
[363349720,1748688637307,-430.0,0.00017807,2]
[363349722,1748688637317,-430.0,0.00017807,2]
[363349724,1748688637327,-430.0,0.00017807,2]
[363349726,1748688637337,-430.0,0.00017807,2]
[363349728,1748688637348,-430.0,0.00017807,2]
[363349730,1748688637358,-430.0,0.00017807,2]
[363349732,1748688637368,-515.63,0.00017807,2]
[363349734,1748688637378,-535.11633453,0.00017807,2]
[363349736,1748688637391,-430.0,0.00017808,2]
[363349738,1748688637401,-781.02,0.00017808,2]
[363349740,1748688637412,-3395.6,0.00017808,2]
[363349742,1748688637423,-177.67,0.00017808,2]
[363349744,1748688637433,-975.01,0.00017808,2]
[363349746,1748688637443,-430.0,0.00017808,2]
[363349749,1748688637453,-812.68,0.00017808,2]
[363349751,1748688637463,-769.45,0.00017808,2]
[363349753,1748688637474,-430.0,0.00017808,2]
[363349755,1748688637485,-430.0,0.00017808,2]
[363349757,1748688637495,-430.0,0.00017808,2]
[363349759,1748688637505,-430.0,0.00017808,2]
[363349761,1748688637517,-546.43,0.00017808,2]
[363349763,1748688637526,-430.0,0.00017808,2]
[363349765,1748688637537,-430.0,0.00017808,2]
[363349766,1748688637546,-430.0,0.00017808,2]
[363349768,1748688637556,-441.29,0.00017808,2]
[363349770,1748688637566,-430.0,0.00017808,2]
[363349772,1748688637576,-542.14,0.00017808,2]
[363349774,1748688637586,-873.22,0.00017808,2]
[363349776,1748688637595,-430.0,0.00017808,2]
[363349778,1748688637606,-562.7,0.00017808,2]
[363349780,1748688637615,-420.0,0.00017962,2]
[363349782,1748688637626,-420.0,0.00017963,2]
[363349784,1748688637635,-3079.448512,0.00018003,2]
[363349786,1748688637645,-430.0,0.00018081,2]
[363349788,1748688637655,-363.72629744,0.00018081,2]
[363349790,1748688637665,-430.0,0.00018081,2]
[363349792,1748688637675,-430.0,0.00018082,2]
[363349794,1748688637685,-781.02,0.00018082,2]
[363349796,1748688637694,-3395.6,0.00018082,2]
[363349798,1748688637704,-975.01,0.00018082,2]
[363349800,1748688637714,-430.0,0.00018082,2]
[363349802,1748688637723,-812.68,0.00018082,2]
[363349804,1748688637733,-769.45,0.00018082,2]
[363349806,1748688637743,-430.0,0.00018082,2]
[363349808,1748688637753,-430.0,0.00018082,2]
[363349810,1748688637763,-430.0,0.00018082,2]
[363349812,1748688637774,-430.0,0.00018082,2]
[363349815,1748688637785,-430.0,0.00018082,2]
[363349817,1748688637795,-369.5,0.00018082,2]
[363349819,1748688637804,-430.0,0.00018082,2]
[363349821,1748688637815,-441.29,0.00018082,2]
[363349823,1748688637824,-430.0,0.00018082,2]
[363349825,1748688637835,-542.14,0.00018082,2]
[363349827,1748688637845,-873.22,0.00018082,2]
[363349829,1748688637855,-430.0,0.00018082,2]
[363349831,1748688637864,-562.7,0.00018082,2]
[363349833,1748688637873,-2443.929871,0.00018082,2]
[363349835,1748688637883,-1000.0,0.00018113,2]
[363349837,1748688637893,-171.7,0.00018164,2]
[363349839,1748688637903,-171.7,0.00018164,2]
[363349841,1748688637913,-1000.0,0.00018164,2]
[363349843,1748688637922,-3079.448512,0.00018279,2]
[363349845,1748688637932,-152.24687626,0.00018298,2]
[363349847,1748688637942,-1012.30549638,0.00018335,2]
[363349849,1748688637952,-430.0,0.00018355,2]
[363349851,1748688637963,-430.0,0.00018355,2]
[363349853,1748688637973,-360.35,0.00018356,2]
[363349855,1748688637982,-781.02,0.00018356,2]
[363349857,1748688637992,-3395.6,0.00018356,2]
[363349859,1748688638001,-975.01,0.00018356,2]
[363349861,1748688638011,-430.0,0.00018356,2]
[363349863,1748688638022,-812.68,0.00018356,2]
[363349865,1748688638031,-769.45,0.00018356,2]
[363349867,1748688638043,-430.0,0.00018356,2]
[363349869,1748688638053,-430.0,0.00018356,2]
[363349871,1748688638062,-560.15,0.00018356,2]
[363349872,1748688638072,-430.0,0.00018356,2]
[363349874,1748688638082,-430.0,0.00018356,2]
[363349876,1748688638094,-430.0,0.00018356,2]
[363349878,1748688638104,-441.29,0.00018356,2]
[363349880,1748688638114,-430.0,0.00018356,2]
[363349882,1748688638125,-542.14,0.00018356,2]
[363349884,1748688638134,-873.22,0.00018356,2]
[363349886,1748688638144,-430.0,0.00018356,2]
[363349888,1748688638153,-562.7,0.00018356,2]
[363349890,1748688638163,-160.0,0.00018368,2]
[363349892,1748688638174,-160.0,0.00018368,2]
[363349894,1748688638183,-212.77096907,0.00018368,2]
[363349895,1748688638193,-160.0,0.00018368,2]
[363349896,1748688638203,-423.4608169,0.00018368,2]
[363349897,1748688638213,-842.5625,0.00018368,2]
[363349898,1748688638222,-229.3428821,0.00018368,2]
[363349900,1748688638232,-8531.7526802,0.00018368,2]
[363349910,1748688638367,-689.55456214,0.00018368,2]
[363349977,1748688639314,-430.0,0.00016438,2]
[363349979,1748688639324,-430.0,0.00016712,2]
[363349981,1748688639334,-430.0,0.00016986,2]
[363349983,1748688639344,-230.0,0.00017259,2]
[363349985,1748688639353,-430.0,0.0001726,2]
[363349987,1748688639363,-500.0,0.00017433,2]
[363349989,1748688639373,-389.62128329,0.00017534,2]
[363349991,1748688639951,-40.37871671,0.00017534,2]
[363349992,1748688639962,-3443.67320754,0.00018368,2]
[363349993,1748688639973,-451.70371874,0.00018551,2]
[363349994,1748688639983,-3079.448512,0.00018555,2]
[363349995,1748688639993,-430.0,0.00018629,2]
[363349996,1748688640004,-189.7,0.00018629,2]
[363349997,1748688640014,-781.02,0.0001863,2]
[363349998,1748688640025,-3395.6,0.0001863,2]
[363349999,1748688640035,-975.01,0.0001863,2]
[363350000,1748688640049,-430.0,0.0001863,2]
[363350001,1748688640059,-812.68,0.0001863,2]
[363350002,1748688640069,-769.45,0.0001863,2]
[363350003,1748688640079,-325.95614337,0.0001863,2]
[363350004,1748688640089,-430.0,0.0001863,2]
[363350005,1748688640099,-430.0,0.0001863,2]
[363350006,1748688640109,-430.0,0.0001863,2]
[363350007,1748688640119,-430.0,0.0001863,2]
[363350008,1748688640130,-441.29,0.0001863,2]
[363350009,1748688640140,-317.78251399,0.0001863,2]
[363350010,1748688640150,-542.14,0.0001863,2]
[363350011,1748688640160,-873.22,0.0001863,2]
[363350012,1748688640170,-438.38,0.0001863,2]
[363350013,1748688640181,-562.7,0.0001863,2]
[363350014,1748688640191,-1500.0,0.00018661,2]
[363350015,1748688640201,-3079.448512,0.00018831,2]
[363350016,1748688640211,-270.0,0.00018903,2]
[363350017,1748688640221,-781.02,0.00018904,2]
[363350018,1748688640234,-2068.39988604,0.00018904,2]
[363350019,1748688640308,-103.37591596,0.00018904,2]
[363350020,1748688640324,-1223.824198,0.00018904,2]
[363350021,1748688640334,-975.01,0.00018904,2]
[363350022,1748688640344,-430.0,0.00018904,2]
[363350023,1748688640354,-812.68,0.00018904,2]
[363350024,1748688640364,-769.45,0.00018904,2]
[363350025,1748688640374,-430.0,0.00018904,2]
[363350026,1748688640384,-430.0,0.00018904,2]
[363350027,1748688640394,-430.0,0.00018904,2]
[363350028,1748688640404,-430.0,0.00018904,2]
[363350029,1748688640415,-441.29,0.00018904,2]
[363350030,1748688640425,-542.14,0.00018904,2]
[363350031,1748688640435,-873.22,0.00018904,2]
[363350032,1748688640445,-10.185812,0.00018904,2]
[363350033,1748688640458,-552.514188,0.00018904,2]
[363350034,1748688640467,-3079.448512,0.00019107,2]
[363350035,1748688640478,-430.0,0.00019178,2]
[363350036,1748688640489,-500.0,0.00019178,2]
[363350037,1748688640499,-500.0,0.00019178,2]
[363350038,1748688640508,-500.0,0.00019178,2]
[363350039,1748688640518,-500.0,0.00019178,2]
[363350040,1748688640528,-500.0,0.00019178,2]
[363350041,1748688640538,-468.27296565,0.00019178,2]
[363350042,1748688640548,-500.0,0.00019178,2]
[363350043,1748688640558,-781.02,0.00019178,2]
[363350044,1748688640568,-3395.6,0.00019178,2]
[363350045,1748688640578,-975.01,0.00019178,2]
[363350046,1748688640588,-430.0,0.00019178,2]
[363350047,1748688640597,-812.68,0.00019178,2]
[363350048,1748688640607,-769.45,0.00019178,2]
[363350049,1748688640616,-430.0,0.00019178,2]
[363350050,1748688640626,-430.0,0.00019178,2]
[363350051,1748688640636,-430.0,0.00019178,2]
[363350052,1748688640645,-430.0,0.00019178,2]
[363350053,1748688640655,-441.29,0.00019178,2]
[363350054,1748688640665,-542.14,0.00019178,2]
[363350055,1748688640675,-873.22,0.00019178,2]
[363350056,1748688640684,-562.7,0.00019178,2]
[363350057,1748688640694,-151.0,0.00019178,2]
[363350058,1748688640706,-1000.0,0.00019209,2]
[363350059,1748688640716,-156.587,0.00019233,2]
[363350060,1748688640725,-1000.0,0.0001926,2]
[363350061,1748688640735,-162.380719,0.00019288,2]
[363350062,1748688640744,-168.3888056,0.00019343,2]
[363350063,1748688640754,-3079.448512,0.00019383,2]
[363350064,1748688640765,-174.61919141,0.00019398,2]
[363350065,1748688640778,-781.02,0.00019452,2]
[363350066,1748688640789,-3395.6,0.00019452,2]
[363350067,1748688640800,-975.01,0.00019452,2]
[363350068,1748688640809,-430.0,0.00019452,2]
[363350069,1748688640819,-812.68,0.00019452,2]
[363350070,1748688640829,-769.45,0.00019452,2]
[363350071,1748688640839,-430.0,0.00019452,2]
[363350072,1748688640849,-430.0,0.00019452,2]
[363350073,1748688640858,-430.0,0.00019452,2]
[363350074,1748688640868,-430.0,0.00019452,2]
[363350076,1748688640878,-441.29,0.00019452,2]
[363350077,1748688640888,-542.14,0.00019452,2]
[363350078,1748688640897,-873.22,0.00019452,2]
[363350079,1748688640907,-562.7,0.00019452,2]
[363350080,1748688640916,-181.08010149,0.00019453,2]
[363350081,1748688640927,-187.78006525,0.00019508,2]
[363350082,1748688640937,-194.72792766,0.00019563,2]
[363350083,1748688640947,-201.93286099,0.00019618,2]
[363350084,1748688640957,-587.0,0.0001963,2]
[363350085,1748688640967,-587.0,0.00019631,2]
[363350086,1748688640977,-3079.448512,0.00019659,2]
[363350087,1748688640987,-451.70371874,0.00019667,2]
[363350088,1748688640997,-209.40437684,0.00019673,2]
[363350089,1748688641008,-781.02,0.00019726,2]
[363350090,1748688641019,-3395.6,0.00019726,2]
[363350091,1748688641029,-975.01,0.00019726,2]
[363350092,1748688641041,-430.0,0.00019726,2]
[363350093,1748688641052,-812.68,0.00019726,2]
[363350094,1748688641062,-769.45,0.00019726,2]
[363350095,1748688641071,-430.0,0.00019726,2]
[363350096,1748688641081,-430.0,0.00019726,2]
[363350097,1748688641090,-430.0,0.00019726,2]
[363350098,1748688641100,-430.0,0.00019726,2]
[363350099,1748688641110,-441.29,0.00019726,2]
[363350100,1748688641121,-542.14,0.00019726,2]
[363350101,1748688641131,-873.22,0.00019726,2]
[363350102,1748688641141,-562.7,0.00019726,2]
[363350103,1748688641152,-217.15233878,0.00019728,2]
[363350104,1748688641161,-225.18697532,0.00019783,2]
[363350106,1748688641171,-233.51889341,0.00019838,2]
[363350108,1748688641181,-662.124,0.0001989,2]
[363350109,1748688641191,-242.15909246,0.00019893,2]
[363350110,1748688641201,-3079.448512,0.00019934,2]
[363350111,1748688641210,-251.11897888,0.00019948,2]
[363350112,1748688641220,-872.15,0.00019999,2]
[363350113,1748688641230,-430.0,0.00019999,2]
[363350114,1748688641240,-277.127724,0.0002,30]
[363350115,1748688641249,-781.02,0.0002,2]
[363350116,1748688641259,-3395.6,0.0002,2]
[363350117,1748688641270,-975.01,0.0002,2]
[363350118,1748688641279,-545.48,0.0002,2]
[363350119,1748688641289,-812.68,0.0002,2]
[363350120,1748688641299,-769.45,0.0002,2]
[363350121,1748688641309,-248.88,0.0002,2]
[363350122,1748688641318,-578.65,0.0002,2]
[363350123,1748688641328,-430.0,0.0002,2]
[363350124,1748688641338,-430.0,0.0002,2]
[363350125,1748688641348,-441.29,0.0002,2]
[363350126,1748688641358,-542.14,0.0002,2]
[363350127,1748688641367,-873.22,0.0002,2]
[363350128,1748688641377,-562.7,0.0002,2]
[363350129,1748688641387,-260.4103811,0.00020003,2]
[363350130,1748688641396,-270.0455652,0.00020058,2]
[363350131,1748688641406,-196.71713535,0.00020113,2]
[363350132,1748688641417,-3079.448512,0.0002021,2]
[363350133,1748688641427,-152.24687626,0.00020257,2]
[363350134,1748688641438,-872.15,0.00020273,2]
[363350135,1748688641447,-781.02,0.00020273,2]
[363350136,1748688641457,-3395.6,0.00020273,2]
[363350137,1748688641467,-430.0,0.00020273,2]
[363350138,1748688641477,-975.01,0.00020273,2]
[363350139,1748688641487,-812.68,0.00020273,2]
[363350140,1748688641496,-769.45,0.00020273,2]
[363350141,1748688641506,-430.0,0.00020273,2]
[363350142,1748688641515,-420.96,0.00020273,2]
[363350143,1748688641527,-441.29,0.00020273,2]
[363350144,1748688641538,-542.14,0.00020273,2]
[363350145,1748688641548,-873.22,0.00020273,2]
[363350146,1748688641558,-562.7,0.00020273,2]
[363350147,1748688641567,-1000.0,0.00020356,2]
[363350148,1748688641578,-3079.448512,0.00020486,3]
[363350149,1748688641588,-872.15,0.00020547,2]
[363350150,1748688641599,-781.02,0.00020547,2]
[363350151,1748688641609,-3395.6,0.00020547,2]
[363350152,1748688641619,-430.0,0.00020547,2]
[363350153,1748688641629,-975.01,0.00020547,2]
[363350154,1748688641639,-812.68,0.00020547,2]
[363350155,1748688641649,-769.45,0.00020547,2]
[363350156,1748688641659,-430.0,0.00020547,2]
[363350157,1748688641669,-441.29,0.00020547,2]
[363350158,1748688641678,-542.14,0.00020547,2]
[363350159,1748688641688,-873.22,0.00020547,2]
[363350160,1748688641698,-562.7,0.00020547,2]
[363350161,1748688641709,-159.82013329,0.00020685,2]
[363350162,1748688641718,-5000.0,0.00020697,2]
[363350163,1748688641728,-250.0,0.00020732,2]
[363350164,1748688641738,-3079.448512,0.00020762,3]
[363350165,1748688641748,-151.0,0.00020779,2]
[363350166,1748688641758,-207.4,0.00020779,2]
[363350167,1748688641768,-5000.0,0.00020779,2]
[363350168,1748688641777,-1601.36094879,0.00020779,2]
[363350169,1748688641787,-451.70371874,0.00020784,2]
[363350170,1748688641797,-872.15,0.00020821,2]
[363350171,1748688641807,-781.02,0.00020821,2]
[363350172,1748688641817,-3395.6,0.00020821,2]
[363350173,1748688641827,-430.0,0.00020821,2]
[363350174,1748688641837,-975.01,0.00020821,2]
[363350175,1748688641847,-812.68,0.00020821,2]
[363350176,1748688641856,-769.45,0.00020821,2]
[363350177,1748688641866,-430.0,0.00020821,2]
[363350178,1748688641876,-441.29,0.00020821,2]
[363350179,1748688641886,-542.14,0.00020821,2]
[363350180,1748688641896,-873.22,0.00020821,2]
[363350181,1748688641906,-562.7,0.00020821,2]
[363350182,1748688641916,-159.82013329,0.00020959,2]
[363350183,1748688641926,-159.82013329,0.00020959,2]
[363350184,1748688641935,-306.0,0.00020986,2]
[363350185,1748688641946,-3079.448512,0.00021038,4]
[363350186,1748688641955,-625.56291871,0.00021088,2]
[363350187,1748688641966,-872.15,0.00021095,2]
[363350188,1748688641975,-781.02,0.00021095,2]
[363350189,1748688641985,-3395.6,0.00021095,2]
[363350190,1748688641994,-430.0,0.00021095,2]
[363350191,1748688642004,-975.01,0.00021095,2]
[363350192,1748688642013,-812.68,0.00021095,2]
[363350193,1748688642024,-769.45,0.00021095,2]
[363350194,1748688642036,-430.0,0.00021095,2]
[363350195,1748688642049,-441.29,0.00021095,2]
[363350196,1748688642059,-542.14,0.00021095,2]
[363350197,1748688642069,-873.22,0.00021095,2]
[363350198,1748688642079,-562.7,0.00021095,2]
[363350199,1748688642089,-600.0,0.0002112,2]
[363350200,1748688642099,-625.56291871,0.00021173,2]
[363350201,1748688642109,-159.82013329,0.00021233,2]
[363350202,1748688642119,-159.82013329,0.00021233,2]
[363350204,1748688642129,-1137.07709808,0.00021294,2]
[363350205,1748688642140,-3079.448512,0.00021314,5]
[363350206,1748688642149,-500.0,0.00021318,2]
[363350207,1748688642159,-500.0,0.00021318,2]
[363350208,1748688642168,-500.0,0.00021318,2]
[363350209,1748688642179,-5000.0,0.00021327,2]
[363350210,1748688642188,-600.0,0.0002134,2]
[363350211,1748688642198,-872.15,0.00021369,2]
[363350212,1748688642207,-781.02,0.00021369,2]
[363350213,1748688642217,-3395.6,0.00021369,2]
[363350214,1748688642227,-430.0,0.00021369,2]
[363350215,1748688642237,-975.01,0.00021369,2]
[363350216,1748688642246,-812.68,0.00021369,2]
[363350217,1748688642256,-769.45,0.00021369,2]
[363350218,1748688642265,-430.0,0.00021369,2]
[363350219,1748688642277,-441.29,0.00021369,2]
[363350220,1748688642287,-542.14,0.00021369,2]
[363350221,1748688642298,-873.22,0.00021369,2]
[363350222,1748688642308,-562.7,0.00021369,2]
[363350223,1748688642318,-1000.0,0.00021452,2]
[363350224,1748688642328,-287.0,0.00021452,2]
[363350225,1748688642338,-267.0,0.00021454,2]
[363350226,1748688642347,-189.53451635,0.00021475,26]
[363350227,1748688642357,-62173.55757243,0.000215,2]
[363350228,1748688642367,-159.82013329,0.00021507,2]
[363350229,1748688642376,-158.4581234,0.00021534,2]
[363350230,1748688642386,-153.0,0.00021534,2]
[363350231,1748688642397,-572.2963003,0.00021534,2]
[363350232,1748688642406,-179.800205,0.00021534,2]
[363350233,1748688642416,-572.2963003,0.00021534,2]
[363350234,1748688642426,-572.2963003,0.00021534,2]
[363350235,1748688642435,-572.2963003,0.00021534,2]
[363350236,1748688642445,-2004.648516,0.0002156,3]
[363350237,1748688642455,-600.0,0.0002156,2]
[363350238,1748688642464,-625.56291871,0.00021581,2]
[363350239,1748688642474,-5000.0,0.00021587,3]
[363350240,1748688642484,-3079.448512,0.0002159,5]
[363350241,1748688642494,-212.77096907,0.0002159,3]
[363350242,1748688642504,-12664.98044988,0.000216,3]
[363350243,1748688642514,-872.15,0.00021643,2]
[363350244,1748688642525,-781.02,0.00021643,2]
[363350245,1748688642535,-3395.6,0.00021643,2]
[363350246,1748688642544,-202.97991208,0.00021643,2]
[363350247,1748688642554,-975.01,0.00021643,2]
[363350248,1748688642563,-812.68,0.00021643,2]
[363350249,1748688642573,-769.45,0.00021643,2]
[363350250,1748688642583,-430.0,0.00021643,2]
[363350251,1748688642592,-441.29,0.00021643,2]
[363350252,1748688642602,-542.14,0.00021643,2]
[363350253,1748688642612,-873.22,0.00021643,2]
[363350254,1748688642621,-562.7,0.00021643,2]
[363350255,1748688642631,-189.53451635,0.00021656,27]
[363350256,1748688642641,-7479.51,0.00021688,2]
[363350257,1748688642651,-151.0,0.000217,4]
[363350258,1748688642662,-962.0,0.00021759,2]
[363350259,1748688642672,-708.0,0.00021759,2]
[363350260,1748688642682,-2227.0,0.00021759,2]
[363350261,1748688642691,-150.0,0.00021759,2]
[363350262,1748688642701,-150.0,0.00021759,2]
[363350263,1748688642711,-774.0,0.0002178,2]
[363350264,1748688642721,-625.56291873,0.00021796,2]
[363350265,1748688642731,-1917.18,0.000218,2]
[363350266,1748688642741,-153.0,0.00021808,2]
[363350267,1748688642751,-153.0,0.00021808,2]
[363350268,1748688642761,-153.0,0.00021808,2]
[363350269,1748688642771,-153.0,0.00021808,2]
[363350270,1748688642780,-571.0043846,0.00021808,2]
[363350271,1748688642790,-189.53451635,0.00021837,29]
[363350272,1748688642802,-3079.448512,0.00021866,6]
[363350273,1748688642950,-500.0,0.00021866,2]
[363350274,1748688642960,-5000.0,0.00021875,2]
[363350275,1748688642970,-200.0,0.0002189,3]
[363350276,1748688642980,-364.3142842,0.0002189,2]
[363350277,1748688642990,-17612.31,0.000219,15]
[363350278,1748688643000,-451.70371874,0.000219,2]
[363350279,1748688643010,-200.0,0.00021917,2]
[363350280,1748688643020,-574.76,0.00021917,2]
[363350281,1748688643031,-292.2741035,0.00021917,2]
[363350282,1748688643044,-872.15,0.00021917,2]
[363350283,1748688643055,-781.02,0.00021917,2]
[363350284,1748688643065,-3395.6,0.00021917,2]
[363350285,1748688643075,-975.01,0.00021917,2]
[363350286,1748688643086,-812.68,0.00021917,2]
[363350287,1748688643096,-769.45,0.00021917,2]
[363350288,1748688643106,-430.0,0.00021917,2]
[363350289,1748688643116,-441.29,0.00021917,2]
[363350290,1748688643126,-542.14,0.00021917,2]
[363350291,1748688643136,-873.22,0.00021917,2]
[363350292,1748688643145,-562.7,0.00021917,2]
[363350293,1748688643155,-5439.11,0.00021961,2]
[363350294,1748688643166,-575.30694928,0.00021973,2]
[363350295,1748688643176,-160.19413256,0.00021973,2]
[363350296,1748688643186,-500.0,0.00021973,2]
[363350297,1748688643195,-500.0,0.00021973,2]
[363350298,1748688643206,-500.0,0.00021973,2]
[363350299,1748688643215,-500.0,0.00021973,2]
[363350300,1748688643225,-500.0,0.00021973,2]
[363350301,1748688643234,-500.0,0.00021973,2]
[363350302,1748688643243,-500.0,0.00021973,2]
[363350303,1748688643252,-500.0,0.00021973,2]
[363350304,1748688643262,-500.0,0.00021973,2]
[363350305,1748688643271,-500.0,0.00021973,2]
[363350306,1748688643281,-500.0,0.00021973,2]
[363350307,1748688643291,-500.0,0.00021973,2]
[363350308,1748688643300,-9079.09924745,0.00021998,2]
[363350309,1748688643309,-151.0,0.00021998,7]
[363350310,1748688643319,-151.0,0.00021998,7]
[363350311,1748688643328,-327.375835,0.00021998,7]
[363350312,1748688643338,-327.375835,0.00021998,7]
[363350313,1748688643347,-151.0,0.00021998,7]
[363350314,1748688643356,-294.787073,0.00021998,7]
[363350315,1748688643366,-551.407411,0.00021998,7]
[363350316,1748688643375,-551.407411,0.00021998,7]
[363350317,1748688643385,-413.06674837,0.00021998,2]
[363350319,1748688643394,-500.0,0.00022,8]
[363350321,1748688643404,-25759.84492326,0.00022,2]
[363350323,1748688643413,-1438.46145442,0.00022,2]
[363350326,1748688643423,-2000.0,0.00022,2]
[363350327,1748688643432,-2000.0,0.00022,2]
[363350328,1748688643441,-2000.0,0.00022,2]
[363350329,1748688643451,-2000.0,0.00022,2]
[363350330,1748688643461,-2000.0,0.00022,2]
[363350331,1748688643470,-206.0,0.00022,2]
[363350332,1748688643479,-4262.0,0.00022,2]
[363350333,1748688643488,-134682.37,0.00022,7]